bitfinex/quotes_SOLUSD_20250902
["timestamp","ask_amount","ask_price","bid_price","bid_amount"]
[1756800592890,0.06,203.09,203.08,0.14216157]
[1756800593291,0.06,203.09,203.08,0.82216157]
[1756800593909,0.06,203.09,203.08,5.74632938]
[1756800594609,0.06,203.09,203.08,8.54529754]
[1756800594796,0.06,203.09,203.08,14.29162654]
[1756800595703,0.06,203.09,203.08,5.88849057]
[1756800596008,42.27896816,203.09,203.05,0.03]
[1756800596221,16.39456217,203.06,203.05,0.03]
[1756800596710,17.09456217,203.06,203.05,0.03]
[1756800597212,20.40814429,203.06,203.05,0.03]
[1756800597705,25.3327971,203.06,203.05,0.03]
[1756800598295,20.40814429,203.06,203.05,0.03]
[1756800598911,4.98410994,203.09,203.05,0.03]
[1756800599090,41.49896816,203.06,203.05,0.03]
[1756800599406,55.09456217,203.06,203.05,0.03]
[1756800599615,63.30779387,203.06,203.05,0.03]
[1756800599815,68.23244668,203.06,203.05,0.03]
[1756800600199,67.53244668,203.06,203.05,0.03]
[1756800600396,10.31219986,203.06,203.05,0.03]
[1756800600609,38.72,203.06,203.05,0.85216157]
[1756800601003,45.71907134,203.06,203.05,0.17216157]
[1756800601206,45.71907134,203.06,203.05,0.03]
[1756800604389,38.72,203.06,203.05,0.03]
[1756800604594,45.71907134,203.06,203.05,0.03]
[1756800604994,38.72,203.06,203.05,0.03]
[1756800605213,45.71907134,203.06,203.05,0.03]
[1756800605928,63.35010168,203.06,203.05,0.03]
[1756800606514,68.27475449,203.06,203.05,0.03]
[1756800607114,63.35010168,203.06,203.05,0.03]
[1756800607311,68.27475449,203.06,203.05,0.03]
[1756800607491,67.55475449,203.06,203.05,0.03]
[1756800607692,23.91010168,203.06,203.05,0.03]
[1756800607893,67.55475449,203.06,203.05,0.03]
[1756800608820,10.31450767,203.06,203.05,0.7]
[1756800609001,49.03450767,203.06,203.05,0.7]
[1756800609515,49.03450767,203.06,203.05,0.03]
[1756800609722,42.03543633,203.06,203.05,0.03]
[1756800610126,49.03450767,203.06,203.05,0.03]
[1756800610519,3.31543633,203.06,203.05,0.03]
[1756800610718,49.03450767,203.06,203.05,0.84216157]
[1756800611309,49.03450767,203.06,203.05,0.17216157]
[1756800611622,42.03543633,203.06,203.05,0.84216157]
[1756800612309,38.72,203.06,203.05,0.84216157]
[1756800612724,6.99907134,203.08,203.06,0.14216157]
[1756800612903,38.72,203.07,203.06,0.81216157]
[1756800613329,42.0385512,203.07,203.06,0.81216157]
[1756800614104,38.72,203.07,203.06,0.81216157]
[1756800614423,42.03858024,203.07,203.06,0.81216157]
[1756800614623,38.72,203.07,203.06,0.81216157]
[1756800615017,45.71907134,203.07,203.06,26.0]
[1756800615722,51.36356531,203.07,203.05,26.03]
[1756800615939,23.91324929,203.06,203.05,0.03]
[1756800616816,28.8379021,203.06,203.05,0.03]
[1756800617407,29.5579021,203.06,203.05,0.03]
[1756800618325,28.8379021,203.06,203.05,0.03]
[1756800618507,29.5579021,203.06,203.05,0.03]
[1756800619431,25.35937083,203.06,203.05,0.03]
[1756800620733,63.35937083,203.06,203.05,0.03]
[1756800623230,64.07937083,203.06,203.05,0.03]
[1756800623446,90.07937083,203.06,203.05,0.03]
[1756800625430,87.27883076,203.06,203.05,0.03]
[1756800625729,90.07937083,203.06,203.05,0.03]
[1756800626331,90.36369397,203.06,203.05,0.03]
[1756800627727,51.64369397,203.06,203.05,0.03]
[1756800628035,89.64369397,203.06,203.05,0.03]
[1756800628337,50.92369397,203.06,203.05,0.03]
[1756800628525,89.35937083,203.06,203.05,0.03]
[1756800628728,90.36369397,203.06,203.05,0.03]
[1756800630039,50.92369397,203.06,203.05,0.03]
[1756800630238,89.64369397,203.06,203.05,0.03]
[1756800630434,39.59559401,203.03,203.02,0.03]
[1756800630645,84.43471802,203.03,203.02,0.03]
[1756800630956,85.15471802,203.03,203.02,0.03]
[1756800631335,84.43471802,203.03,203.02,0.03]
[1756800631532,42.91417795,203.03,203.02,0.03]
[1756800631854,84.43471802,203.03,203.02,0.03]
[1756800632345,89.3600985,203.03,203.02,0.03]
[1756800635150,101.55658192,203.03,203.0,0.03]
[1756800635364,27.59829436,203.01,203.0,0.03]
[1756800635650,55.63417795,203.01,203.0,0.03]
[1756800635852,58.43471802,203.01,203.0,0.03]
[1756800636360,63.36058374,203.01,203.0,0.03]
[1756800637643,74.56274402,203.01,203.0,0.03]
[1756800637838,75.27274402,203.01,203.0,0.03]
[1756800638159,74.56274402,203.01,203.0,0.03]
[1756800639633,16.91417795,203.01,203.0,0.73]
[1756800639839,58.43471802,203.01,203.0,0.73]
[1756800640645,38.72,203.01,203.0,0.73]
[1756800640847,41.52054007,203.01,203.0,0.73]
[1756800642677,2.80054007,203.01,203.0,0.73]
[1756800642975,41.52054007,203.01,203.0,0.73]
[1756800643167,13.59559401,203.05,203.0,5.65607737]
[1756800643367,38.72,203.04,203.01,0.7]
[1756800643974,41.52054007,203.04,203.01,0.7]
[1756800645274,16.39613408,203.02,203.0,0.03]
[1756800645564,56.69185886,203.01,203.0,0.03]
[1756800645742,43.09626485,203.01,203.0,0.03]
[1756800646145,38.72,203.01,203.0,0.73]
[1756800648548,133.8,203.06,203.01,0.14216157]
[1756800648765,133.8,203.06,203.02,0.7]
[1756800648766,55.61186657,203.05,203.02,0.7]
[1756800648968,38.7,203.05,203.02,0.7]
[1756800649157,38.7,203.05,203.01,4.37626485]
[1756800649458,38.7,203.04,203.03,0.7]
[1756800649675,38.7,203.04,203.02,0.14216157]
[1756800650046,38.7,203.04,203.02,4.51842642]
[1756800650281,38.7,203.04,203.03,0.7]
[1756800650665,38.7,203.04,203.03,5.62538048]
[1756800651260,38.7,203.04,203.03,0.7]
[1756800651767,38.7,203.04,203.03,5.62538048]
[1756800651968,38.7,203.04,203.03,0.7]
[1756800654772,0.06,203.05,203.03,5.62535746]
[1756800654976,38.76,203.05,203.04,0.14216157]
[1756800655177,38.76,203.05,203.04,0.84216157]
[1756800656382,38.76,203.05,203.02,0.7]
[1756800656566,38.76,203.05,203.03,0.7]
[1756800656757,38.76,203.05,203.04,0.7]
[1756800658052,38.76,203.05,203.04,5.6251379]
[1756800658976,38.76,203.05,203.04,5.76729947]
[1756800659275,0.06,203.05,203.04,10.14356432]
[1756800663954,0.06,203.05,203.04,10.42788746]
[1756800664366,0.06,203.05,203.04,10.14356432]
[1756800664578,0.06,203.05,203.04,10.42788746]
[1756800665883,0.06,203.05,203.04,6.05162261]
[1756800666059,0.06,203.05,203.04,0.7]
[1756800666261,0.06,203.05,203.03,4.92533659]
[1756800666478,0.06,203.05,203.04,0.82216157]
[1756800667665,0.06,203.05,203.04,5.74729947]
[1756800668682,0.06,203.05,203.02,5.74765909]
[1756800668870,0.06,203.05,203.02,10.12392394]
[1756800669071,0.06,203.05,203.03,0.68]
[1756800669267,0.06,203.05,203.04,0.14216157]
[1756800669489,0.06,203.05,203.04,0.82216157]
[1756800670695,0.06,203.05,203.04,10.12356432]
[1756800674272,0.06,203.05,203.04,5.74729947]
[1756800674472,0.06,203.05,203.04,10.12356432]
[1756800675985,0.06,203.05,203.04,5.74729947]
[1756800676163,0.06,203.05,203.04,10.12356432]
[1756800678099,0.06,203.05,203.04,4.9251379]
[1756800678521,0.06,203.05,203.04,9.44356432]
[1756800679410,0.06,203.05,203.04,10.12356432]
[1756800680404,0.06,203.05,203.04,10.40788746]
[1756800680786,0.06,203.07,203.06,30.37626485]
[1756800680997,0.06,203.08,203.07,26.42648471]
[1756800681296,0.06,203.08,203.07,31.48274956]
[1756800681802,0.06,203.08,203.07,38.38017886]
[1756800683625,1e-08,203.08,203.07,38.38017886]
[1756800683909,0.06,203.15,203.11,26.42648471]
[1756800684108,0.06,203.15,203.11,4.80274956]
[1756800684473,0.06,203.15,203.11,33.45528156]
[1756800685336,0.06,203.15,203.11,38.37872206]
[1756800686715,0.06,203.15,203.11,77.03872206]
[1756800688240,0.06,203.15,203.12,0.42648471]
[1756800688434,0.06,203.15,203.12,5.48274956]
[1756800689311,1e-08,203.14,203.12,5.48274956]
[1756800689625,1e-08,203.15,203.14,26.42648471]
[1756800689829,1e-08,203.15,203.14,69.44274956]
[1756800690023,1e-08,203.15,203.14,70.12274956]
[1756800690233,1e-08,203.15,203.14,75.04546295]
[1756800691131,1e-08,203.15,203.14,77.01760695]
[1756800693142,1e-08,203.15,203.14,33.03701896]
[1756800693445,1e-08,203.15,203.14,38.09328381]
[1756800694047,1e-08,203.15,203.14,76.05328381]
[1756800695351,1e-08,203.15,203.14,33.03701896]
[1756800695532,1e-08,203.15,203.14,37.41328381]
[1756800696525,1e-08,203.15,203.14,38.07328381]
[1756800696726,1e-08,203.15,203.14,33.03701896]
[1756800697029,1e-08,203.15,203.14,35.44113981]
[1756800698153,1e-08,203.15,203.14,31.06487496]
[1756800698453,0.66000001,203.15,203.14,0.14216157]
[1756800698743,0.66000001,203.15,203.13,9.29898619]
[1756800698914,0.66000001,203.15,203.13,30.92272134]
[1756800699313,0.66000001,203.15,203.14,0.14216157]
[1756800701246,1e-08,203.15,203.14,0.14216157]
[1756800702045,1e-08,203.15,203.14,9.44113981]
[1756800702621,1e-08,203.15,203.14,4.51842642]
[1756800702822,1e-08,203.15,203.14,5.06487496]
[1756800703022,1e-08,203.15,203.14,9.44113981]
[1756800704630,1e-08,203.15,203.14,0.14216157]
[1756800705049,1e-08,203.15,203.14,5.06487496]
[1756800705229,1e-08,203.15,203.14,9.44113981]
[1756800705737,1e-08,203.15,203.14,9.47113981]
[1756800707354,1e-08,203.15,203.14,10.13113981]
[1756800707553,1e-08,203.15,203.14,8.54940654]
[1756800707854,1e-08,203.15,203.14,10.52174454]
[1756800708224,1e-08,203.15,203.14,7.88940654]
[1756800708452,1e-08,203.15,203.14,8.54940654]
[1756800710541,1e-08,203.15,203.14,7.88940654]
[1756800711136,0.66000001,203.15,203.14,0.17216157]
[1756800711657,1e-08,203.15,203.14,0.17216157]
[1756800712044,1e-08,203.15,203.14,8.54940654]
[1756800712447,1e-08,203.15,203.14,10.52174454]
[1756800712651,1e-08,203.15,203.14,10.80606768]
[1756800714759,0.06,203.18,203.17,26.42648471]
[1756800715064,0.06,203.2,203.17,67.84101629]
[1756800715255,0.06,203.2,203.19,3.22101629]
[1756800715648,0.06,203.2,203.19,18.00844729]
[1756800715851,0.06,203.2,203.19,15.87391571]
[1756800716054,0.06,203.2,203.19,18.66844729]
[1756800717259,0.06,203.2,203.19,62.18994933]
[1756800718959,0.06,203.2,203.19,31.06366361]
[1756800719136,0.06,203.2,203.19,33.85819519]
[1756800721156,0.06,203.2,203.19,8.80251833]
[1756800721357,0.06,203.2,203.19,47.40251833]
[1756800721932,0.06,203.2,203.19,50.19705033]
[1756800722937,0.06,203.2,203.19,33.85819561]
[1756800723133,0.06,203.2,203.19,36.65272719]
[1756800723335,0.72,203.2,203.19,2.93669357]
[1756800723572,0.06,203.2,203.18,4.92173315]
[1756800723865,3.45453158,203.19,203.15,4.919859]
[1756800724065,0.06,203.2,203.14,26.03]
[1756800724066,0.66,203.18,203.14,26.03]
[1756800724236,0.66,203.17,203.15,0.14216157]
[1756800724632,0.66,203.17,203.14,26.03]
[1756800724633,0.66,203.16,203.14,0.03]
[1756800724952,0.66,203.16,203.14,26.17216157]
[1756800725259,0.71,203.15,203.14,0.17216157]
[1756800725963,3.50453158,203.17,203.14,5.0948368]
[1756800726149,0.71,203.16,203.14,0.03]
[1756800726334,16.39012559,203.15,203.14,0.03]
[1756800726760,16.39012559,203.15,203.11,0.03]
[1756800726761,2.79453158,203.15,203.11,0.03]
[1756800727061,2.79453158,203.12,203.11,0.03]
[1756800727467,3.49453158,203.12,203.11,0.03]
[1756800727936,2.79453158,203.15,203.11,0.03]
[1756800728337,0.7,203.14,203.11,0.03]
[1756800729175,0.7,203.14,203.11,0.17216157]
[1756800730065,2.79453158,203.15,203.11,0.17216157]
[1756800730275,3.49453158,203.13,203.11,0.17216157]
[1756800730452,0.7,203.13,203.11,0.17216157]
[1756800730655,3.49453158,203.13,203.11,0.17216157]
[1756800730962,0.7,203.13,203.11,0.17216157]
[1756800732068,0.7,203.13,203.11,0.03]
[1756800734672,4.92229375,203.16,203.11,0.03]
[1756800734673,55.69012559,203.12,203.11,0.03]
[1756800735040,17.09012559,203.12,203.11,0.03]
[1756800735245,55.69012559,203.12,203.11,0.03]
[1756800735445,42.09453158,203.12,203.11,0.03]
[1756800735742,55.69012559,203.12,203.11,0.03]
[1756800736673,52.89559401,203.12,203.11,0.03]
[1756800737072,55.69012559,203.12,203.11,0.03]
[1756800738873,60.61332369,203.12,203.11,0.03]
[1756800739251,55.69012559,203.12,203.11,0.03]
[1756800739669,52.89559401,203.12,203.11,0.03]
[1756800739972,54.99012559,203.12,203.11,0.03]
[1756800740270,55.69012559,203.12,203.11,0.03]
[1756800741454,52.89559401,203.12,203.11,0.03]
[1756800741658,17.09012559,203.12,203.11,0.03]
[1756800741979,0.06,203.14,203.11,3.62669315]
[1756800742177,0.06,203.14,203.13,2.93669315]
[1756800742567,0.06,203.14,203.13,8.51964889]
[1756800743379,0.06,203.14,203.13,0.14216157]
[1756800749281,0.06,203.14,203.13,0.80216157]
[1756800749455,0.06,203.14,203.13,8.51964889]
[1756800751369,0.06,203.14,203.13,5.72511731]
[1756800751570,0.06,203.14,203.13,0.80216157]
[1756800751886,0.06,203.14,203.13,5.72511731]
[1756800752776,0.06,203.14,203.13,8.51964889]
[1756800754766,0.06,203.14,203.13,5.72511731]
[1756800755969,0.06,203.14,203.13,8.51964889]
[1756800757188,0.06,203.14,203.13,5.72511731]
[1756800757368,0.06,203.14,203.13,8.51964889]
[1756800758864,0.06,203.17,203.16,26.14216157]
[1756800759288,0.06,203.17,203.16,29.65669315]
[1756800759496,0.06,203.17,203.16,26.86216157]
[1756800759782,0.06,203.17,203.16,29.65669315]
[1756800760772,0.06,203.17,203.16,34.57892193]
[1756800762261,0.06,203.17,203.16,34.7210835]
[1756800762461,0.06,203.19,203.17,0.14216157]
[1756800762686,0.06,203.19,203.18,3.65669315]
[1756800762878,0.06,203.19,203.18,8.57843741]
[1756800764487,0.06,203.19,203.18,5.06390583]
[1756800765581,0.06,203.19,203.18,8.57843741]
[1756800769602,0.06,203.19,203.18,10.14964643]
[1756800773298,0.06,203.19,203.18,5.06390583]
[1756800777110,0.74,203.19,203.15,9.28821168]
[1756800777403,0.06,203.19,203.16,5.22790217]
[1756800777609,0.06,203.19,203.18,0.14216157]
[1756800778809,0.06,203.19,203.18,5.06390583]
[1756800781411,0.06,203.19,203.18,10.14964643]
[1756800782786,0.06,203.19,203.18,9.42964643]
[1756800782988,0.06,203.19,203.18,10.14964643]
[1756800783192,0.06,203.19,203.18,5.78390583]
[1756800783512,0.06,203.19,203.18,10.14964643]
[1756800785287,1e-08,203.19,203.18,10.43396957]
[1756800785512,1e-08,203.2,203.19,0.28432314]
[1756800785689,1e-08,203.2,203.19,5.51222531]
[1756800787393,1e-08,203.2,203.19,36.43372735]
[1756800788626,1e-08,203.2,203.19,10.43372735]
[1756800790206,1e-08,203.2,203.19,32.06798675]
[1756800790411,1e-08,203.2,203.19,36.43372735]
[1756800791016,1e-08,203.2,203.19,10.43372735]
[1756800791213,1e-08,203.2,203.19,79.33946795]
[1756800791519,1e-08,203.2,203.19,48.97372735]
[1756800792412,1e-08,203.2,203.19,10.43372735]
[1756800794532,1e-08,203.2,203.19,5.06366361]
[1756800794715,1e-08,203.2,203.19,9.28724264]
[1756800794891,1e-08,203.2,203.17,2.001754]
[1756800795093,1e-08,203.2,203.18,0.14216157]
[1756800795317,1e-08,203.2,203.18,4.50790217]
[1756800795917,1e-08,203.2,203.18,4.3657406]
[1756800796093,1e-08,203.2,203.19,0.14216157]
[1756800796094,0.67000001,203.2,203.19,0.14216157]
[1756800797002,0.67000001,203.2,203.19,5.06366361]
[1756800797328,1e-08,203.2,203.19,5.06366361]
[1756800798015,0.67000001,203.2,203.18,0.14216157]
[1756800798205,0.67,203.19,203.18,0.14216157]
[1756800798412,0.67,203.19,203.18,5.06390583]
[1756800798822,0.67,203.19,203.18,0.14216157]
[1756800799030,5.0357406,203.19,203.17,0.03]
[1756800799234,4.3657406,203.18,203.17,0.03]
[1756800799629,5.0357406,203.18,203.17,0.03]
[1756800799931,0.67,203.18,203.17,0.03]
[1756800801737,5.0357406,203.18,203.17,0.03]
[1756800802235,18.63133461,203.18,203.17,0.03]
[1756800802809,19.18733827,203.18,203.17,0.03]
[1756800803010,23.55307887,203.18,203.17,0.03]
[1756800804437,26.8619733,203.18,203.17,0.03]
[1756800804736,65.4019733,203.18,203.17,0.03]
[1756800806931,65.39947912,203.18,203.17,0.03]
[1756800807233,65.68380226,203.18,203.17,0.03]
[1756800808425,72.52440658,203.18,203.17,1e-08]
[1756800808737,74.49800958,203.18,203.17,1e-08]
[1756800809511,39.59559401,203.14,203.13,0.03]
[1756800809711,86.092058,203.14,203.13,0.03]
[1756800809911,86.762058,203.14,203.13,0.03]
[1756800810614,88.735855,203.14,203.13,0.03]
[1756800810815,92.59714075,203.14,203.13,0.03]
[1756800811227,86.47773486,203.14,203.13,0.03]
[1756800811431,83.17133461,203.14,203.13,0.03]
[1756800811630,88.094048,203.14,203.13,0.03]
[1756800813030,88.37837114,203.14,203.13,0.03]
[1756800815012,49.83837114,203.14,203.13,0.03]
[1756800815217,88.37837114,203.14,203.13,0.03]
[1756800816015,88.43837114,203.14,203.13,0.03]
[1756800817719,53.18542238,203.14,203.13,0.03]
[1756800818042,91.72542238,203.14,203.13,0.03]
[1756800818342,88.43837114,203.14,203.13,0.03]
[1756800818655,91.7242175,203.14,203.13,0.03]
[1756800818820,88.43837114,203.14,203.13,0.03]
[1756800822644,95.27897546,203.14,203.13,1e-08]
[1756800823637,97.25287146,203.14,203.13,1e-08]
[1756800823949,13.87991715,203.12,203.11,1e-08]
[1756800824143,61.15139835,203.12,203.11,1e-08]
[1756800824346,78.41991715,203.12,203.11,1e-08]
[1756800824529,82.78565775,203.12,203.11,1e-08]
[1756800825350,44.24565775,203.12,203.11,1e-08]
[1756800825545,44.24565775,203.12,203.11,0.67000001]
[1756800825546,52.13559401,203.12,203.11,0.67000001]
[1756800825755,56.50133461,203.12,203.11,0.67000001]
[1756800826251,0.06,203.14,203.11,26.67000001]
[1756800826552,0.06,203.14,203.13,4.50790217]
[1756800826849,38.6,203.14,203.13,4.50790217]
[1756800827053,38.6,203.14,203.13,31.17790217]
[1756800827255,0.06,203.14,203.13,31.17790217]
[1756800827545,0.06,203.14,203.13,36.10085791]
[1756800828260,0.06,203.14,203.13,31.73511731]
[1756800828556,0.06,203.14,203.13,26.81216157]
[1756800828767,13.65559401,203.14,203.13,0.67]
[1756800828935,18.02133461,203.14,203.13,0.67]
[1756800830445,13.65559401,203.14,203.13,0.67]
[1756800830656,18.02133461,203.14,203.13,0.67]
[1756800830952,38.6,203.14,203.13,0.67]
[1756800831124,0.06,203.14,203.13,0.67]
[1756800831331,38.6,203.14,203.13,0.67]
[1756800831726,38.6,203.14,203.13,0.81216157]
[1756800832143,38.6,203.14,203.13,8.53109506]
[1756800832342,0.06,203.14,203.13,8.53109506]
[1756800834749,0.06,203.14,203.13,0.81216157]
[1756800835056,0.06,203.14,203.13,8.53109506]
[1756800835245,0.06,203.17,203.14,0.14216157]
[1756800835446,0.06,203.17,203.16,0.14216157]
[1756800835662,0.06,203.17,203.16,0.81216157]
[1756800835835,0.06,203.17,203.16,3.60813932]
[1756800836541,0.06,203.17,203.16,5.73439035]
[1756800837832,0.06,203.17,203.16,0.81216157]
[1756800840741,0.06,203.17,203.16,5.73439035]
[1756800844460,0.06,203.17,203.16,8.5303681]
[1756800846344,0.06,203.17,203.16,5.73439035]
[1756800846645,0.06,203.17,203.16,8.5303681]
[1756800847456,0.06,203.17,203.16,5.73439035]
[1756800848463,0.06,203.17,203.16,8.5303681]
[1756800851160,0.06,203.17,203.14,5.06482586]
[1756800851359,0.06,203.17,203.14,5.79482586]
[1756800851545,38.56,203.17,203.16,0.14216157]
[1756800852079,41.35597775,203.17,203.14,4.95269907]
[1756800852375,41.35597775,203.17,203.15,0.14216157]
[1756800852678,38.56,203.17,203.15,0.14216157]
[1756800854352,0.06,203.17,203.16,3.49597775]
[1756800854572,38.56,203.17,203.16,3.49597775]
[1756800855446,38.56,203.17,203.16,8.41820653]
[1756800855647,0.06,203.17,203.16,8.5603681]
[1756800855846,0.06,203.17,203.16,5.76439035]
[1756800856047,0.06,203.17,203.16,8.5603681]
[1756800858962,0.06,203.17,203.16,7.8603681]
[1756800859168,0.06,203.17,203.16,8.5603681]
[1756800861953,0.06,203.17,203.16,0.14216157]
[1756800862152,0.06,203.17,203.16,2.93813932]
[1756800863849,0.06,203.17,203.16,0.14216157]
[1756800864053,0.06,203.17,203.16,2.93813932]
[1756800865465,0.06,203.17,203.16,0.14216157]
[1756800866160,0.78,203.17,203.16,0.14216157]
[1756800867383,0.78,203.17,203.14,0.03]
[1756800867878,14.37559401,203.17,203.14,0.03]
[1756800869283,21.37364818,203.17,203.14,0.03]
[1756800869484,0.72,203.16,203.14,0.03]
[1756800869689,21.37364818,203.17,203.14,0.03]
[1756800869690,38.5,203.15,203.14,0.03]
[1756800870378,39.22,203.15,203.14,0.03]
[1756800872493,63.84174258,203.15,203.14,0.03]
[1756800876698,61.04576483,203.15,203.14,0.03]
[1756800876883,63.84174258,203.15,203.14,0.03]
[1756800880897,63.12174258,203.15,203.14,0.03]
[1756800881198,63.40606572,203.15,203.14,0.03]
[1756800881900,63.40606572,203.15,203.11,1e-08]
[1756800881901,39.59559401,203.12,203.11,1e-08]
[1756800882100,84.1792715,203.12,203.11,1e-08]
[1756800882603,89.1024696,203.12,203.11,1e-08]
[1756800883303,89.38679274,203.12,203.11,1e-08]
[1756800884099,13.87991715,203.11,203.1,0.03]
[1756800884302,31.16750564,203.11,203.1,0.03]
[1756800885313,23.76102844,203.11,203.09,1e-08]
[1756800885486,55.66761689,203.1,203.09,1e-08]
[1756800885690,56.64761689,203.1,203.09,1e-08]
[1756800886003,36.09118855,203.1,203.09,1e-08]
[1756800886214,75.61118855,203.1,203.09,1e-08]
[1756800887715,64.12295441,203.1,203.09,1e-08]
[1756800887909,21.31525467,203.1,203.09,1e-08]
[1756800888095,60.81525467,203.1,203.09,1e-08]
[1756800888989,72.28348881,203.1,203.09,1e-08]
[1756800889199,61.59389778,203.1,203.09,1e-08]
[1756800889406,16.39157176,203.1,203.09,1e-08]
[1756800889722,60.79525467,203.1,203.09,1e-08]
[1756800890020,71.97916567,203.1,203.09,1e-08]
[1756800890220,72.26348881,203.1,203.09,1e-08]
[1756800890531,58.28360006,203.1,203.09,1e-08]
[1756800890693,72.26348881,203.1,203.09,1e-08]
[1756800891014,61.07957781,203.1,203.09,1e-08]
[1756800891316,72.26348881,203.1,203.09,1e-08]
[1756800891497,72.26348881,203.1,203.08,0.03]
[1756800891498,39.87991715,203.09,203.08,0.03]
[1756800891699,45.9648891,203.09,203.08,0.03]
[1756800892128,39.59559401,203.07,203.02,0.03]
[1756800892414,85.14056596,203.07,203.02,0.03]
[1756800892791,95.98734548,203.07,203.02,0.03]
[1756800893323,13.87991715,203.06,203.02,0.03]
[1756800893499,4.37676221,203.03,203.02,0.03]
[1756800894024,13.59559401,203.12,203.02,0.03]
[1756800894189,13.59559401,203.06,203.03,0.14216157]
[1756800894499,39.42,203.05,203.03,0.14216157]
[1756800895322,39.42,203.05,203.02,0.03]
[1756800896023,39.42,203.05,203.02,4.95557588]
[1756800896932,43.79676221,203.05,203.02,0.03]
[1756800897225,39.42,203.05,203.02,0.03]
[1756800897820,4.37676221,203.07,203.03,0.14216157]
[1756800898017,39.42,203.06,203.03,4.51892378]
[1756800898198,39.42,203.05,203.03,4.51892378]
[1756800898696,39.42,203.05,203.03,0.14216157]
[1756800898892,39.42,203.05,203.03,5.0674759]
[1756800899526,39.42,203.05,203.03,9.44423811]
[1756800899903,39.42,203.05,203.03,5.0674759]
[1756800901121,39.42,203.05,203.02,0.17216157]
[1756800901421,43.79676221,203.05,203.02,0.17216157]
[1756800901800,39.42,203.05,203.02,5.09776349]
[1756800902329,39.42,203.05,203.02,0.17216157]
[1756800902524,39.42,203.05,203.02,5.09776632]
[1756800902732,43.79676221,203.05,203.02,5.09776632]
[1756800903118,39.42,203.05,203.02,5.09776632]
[1756800903632,39.42,203.05,203.04,0.14216157]
[1756800904214,39.42,203.05,203.04,4.51892378]
[1756800904415,133.8,203.11,203.04,4.51892378]
[1756800904715,39.36,203.1,203.09,4.51892378]
[1756800904917,0.06,203.15,203.1,0.14216157]
[1756800905122,39.36,203.14,203.13,5.06511731]
[1756800905837,43.73676221,203.14,203.08,0.14216157]
[1756800906011,4.37676221,203.12,203.08,0.14216157]
[1756800906213,39.34,203.11,203.08,0.14216157]
[1756800907522,4.37676221,203.1,203.07,0.14216157]
[1756800907725,13.59559401,203.07,203.02,0.03]
[1756800907918,4.37676221,203.05,203.02,0.03]
[1756800908119,43.75676221,203.04,203.02,0.17216157]
[1756800908431,39.38,203.04,203.02,0.17216157]
[1756800908939,39.38,203.04,203.02,0.03]
[1756800910715,17.97235622,203.03,203.02,0.03]
[1756800911531,22.8977367,203.03,203.02,0.03]
[1756800911839,17.97235622,203.03,203.02,0.03]
[1756800912041,22.8977367,203.03,203.02,0.03]
[1756800912414,18.52097449,203.03,203.02,0.03]
[1756800912742,17.97235622,203.03,203.02,0.03]
[1756800912911,23.01566894,203.1,203.02,0.03]
[1756800913118,13.59559401,203.04,203.02,0.03]
[1756800913423,39.68,203.03,203.02,0.03]
[1756800914054,39.68,203.03,203.02,0.17216157]
[1756800914521,4.37676221,203.08,203.02,4.54892378]
[1756800914725,39.76,203.07,203.04,4.51892378]
[1756800914923,39.76,203.06,203.04,4.51892378]
[1756800915137,39.76,203.06,203.05,4.51892378]
[1756800915327,39.74,203.1,203.06,0.14216157]
[1756800915840,39.74,203.1,203.05,0.14216157]
[1756800915841,17.97235622,203.09,203.05,0.14216157]